[Event "FRA-ch Open A-D 2018"]
[Site "Nimes"]
[Date "2018.08.21"]
[Round "4"]
[White "Jugeau, Frederic"]
[Black "Swaidan, Ali"]
[Result "1-0"]
[ECO "C02"]
[WhiteElo "1409"]
[BlackElo "1488"]
[Annotator "NA RC"]
[PlyCount "103"]
[EventDate "2018.08.18"]
[EventType "tourn"]
[EventCountry "FRA"]
[SourceTitle "playchess.com"]
[Source "ChessBase"]
[SourceQuality "1"]
[TimeControl "40/5400+30:1800+30"]

1. e4 {[%emt 0:00:00]} e6 {[%emt 0:00:00]} 2. d4 {[%emt 0:00:00]} d5 {[%emt 0:00:00]} 3. e5 {[%emt 0:00:50]} c5 {[%emt 0:00:00]} 4. c3 {[%emt 0:00:14]} Nc6 {[%emt 0:00:00]} 5. Nf3 {[%emt 0:00:17]} Qb6 {[%emt 0:00:44]} 6. a3 {[%emt 0:00:25]} a5 {[%emt 0:00:40]} 7. a4 {[%emt 0:12:43]} Bd7 {[%emt 0:01:27]} 8. Bb5 {[%emt 0:07:23]} cxd4 {[%emt 0:01:46]} 9. cxd4 {[%emt 0:00:50]} Bb4+ {[%emt 0:00:02]} 10. Nc3 {[%emt 0:09:56]} Nge7 {[%emt 0:21:10]} 11. O-O {[%emt 0:00:56]} Nf5 {[%emt 0:03:15]} 12. Ne2 {[%emt 0:04:47]} Rc8 {[%emt 0:05:02]} 13. g4 {[%emt 0:06:11]} Nfe7 {[%emt 0:00:11]} 14. Be3 {[%emt 0:06:51]} h5 {[%emt 0:06:07]} 15. Ng3 {[%emt 0:09:54]} hxg4 {[%emt 0:05:01]} 16. Ne1 {[%emt 0:03:41]} f5 {[%emt 0:08:12]} 17. Nd3 {[%emt 0:03:57]} Nxd4 {[%emt 0:06:14]} 18. Bxd7+ {[%emt 0:07:13]} Kxd7 {[%emt 0:00:02]} 19. Nxb4 {[%emt 0:01:10]} Nf3+ {[%emt 0:09:39]} 20. Qxf3 {[%emt 0:02:29]} gxf3 {[%emt 0:00:09]} 21. Bxb6 {[%emt 0:00:30]} axb4 {[%emt 0:00:22]} 22. Rfc1 {[%emt 0:02:36]} Nc6 {[%emt 0:01:55]} 23. a5 {[%emt 0:03:02]} Nxe5 {[%emt 0:01:37]} 24. Rxc8 {[%emt 0:01:40]} Rxc8 {[%emt 0:02:36]} 25. Bd4 {[%emt 0:02:12]} Nc4 {[%emt 0:01:44]} 26. a6 {[%emt 0:03:21]} Ra8 {[%emt 0:01:54]} 27. b3 {[%emt 0:01:14]} Nd2 {[%emt 0:00:29]} 28. axb7 {[%emt 0:00:26]} Rxa1+ {[%emt 0:00:06]} 29. Bxa1 {[%emt 0:00:06]} Kc7 {[%emt 0:00:44]} 30. Bxg7 {[%emt 0:00:42]} Nxb3 {[%emt 0:01:14]} 31. h4 {[%emt 0:01:22]} Na5 {[%emt 0:09:51]} 32. b8=Q+ {[%emt 0:01:04]} Kxb8 {[%emt 0:00:02]} 33. h5 {[%emt 0:02:04]} Nc6 {[%emt 0:01:46]} 34. Bf6 {[%emt 0:01:51]} e5 {[%emt 0:01:00]} 35. Nf1 {[%emt 0:02:24]} b3 {[%emt 0:00:27]} 36. Nd2 {[%emt 0:00:18]} b2 {[%emt 0:00:23]} 37. h6 {[%emt 0:00:27]} e4 {[%emt 0:02:44]} 38. h7 {[%emt 0:00:30]} Nb4 {[%emt 0:00:43]} 39. h8=Q+ {[%emt 0:00:28]} Kb7 {[%emt 0:00:02]} 40. Qg7+ {[%emt 0:01:11]} Kc6 {[%emt 0:00:06]} 41. Nb1 {[%emt 0:31:25]} f4 {[%emt 0:30:24]} 42. Bxb2 {[%emt 0:00:42]} Nd3 {[%emt 0:00:32]} 43. Qf6+ {[%emt 0:01:07]} Kb5 {[%emt 0:00:33]} 44. Nc3+ {[%emt 0:00:43]} Kc4 {[%emt 0:00:20]} 45. Qc6+ {[%emt 0:00:00]} Kb3 {[%emt 0:00:00]} 46. Nxe4 {[%emt 0:00:00]} dxe4 {[%emt 0:00:00]} 47. Qxe4 {[%emt 0:00:00]} Nxb2 {[%emt 0:00:00]} 48. Qxf3+ {[%emt 0:00:00]} Kc2 {[%emt 0:00:00]} 49. Qxf4 {[%emt 0:00:00]} Nd3 {[%emt 0:00:00]} 50. Qf5 {[%emt 0:00:00]} Kd2 {[%emt 0:00:00]} 51. f4 {[%emt 0:00:00]} Ke3 {[%emt 0:00:00]} 52. Qxd3+ 1-0

[Event "FRA-ch Open A-D 2018"]
[Site "Nimes"]
[Date "2018.08.21"]
[Round "4"]
[White "Faillat, Alois"]
[Black "Alcindor, Samuel"]
[Result "1/2-1/2"]
[ECO "B23"]
[WhiteElo "1408"]
[BlackElo "1462"]
[Annotator "NA RC"]
[PlyCount "91"]
[EventDate "2018.08.18"]
[EventType "tourn"]
[EventCountry "FRA"]
[SourceTitle "playchess.com"]
[Source "ChessBase"]
[SourceQuality "1"]
[TimeControl "40/5400+30:1800+30"]

1. e4 {[%emt 0:00:00]} c5 {[%emt 0:00:00]} 2. Nc3 {[%emt 0:00:20]} Nc6 {[%emt 0:00:00]} 3. f4 {[%emt 0:01:34]} e6 {[%emt 0:01:22]} 4. Nf3 {[%emt 0:01:43]} d5 {[%emt 0:00:17]} 5. exd5 {[%emt 0:03:15]} exd5 {[%emt 0:00:11]} 6. d3 {[%emt 0:02:54]} Nf6 {[%emt 0:02:59]} 7. Be2 {[%emt 0:03:42]} Bd6 {[%emt 0:00:57]} 8. d4 {[%emt 0:07:15]} cxd4 {[%emt 0:03:20]} 9. Nxd4 {[%emt 0:00:20]} a6 {[%emt 0:01:22]} 10. Be3 {[%emt 0:03:18]} O-O {[%emt 0:03:48]} 11. Qd2 {[%emt 0:06:42]} Bb4 {[%emt 0:09:55]} 12. a3 {[%emt 0:01:01]} Ne4 {[%emt 0:14:11]} 13. Nxc6 {[%emt 0:01:04]} bxc6 {[%emt 0:02:03]} 14. Qd4 {[%emt 0:01:19]} Bc5 {[%emt 0:15:16]} 15. Qd3 {[%emt 0:02:45]} Qh4+ {[%emt 0:02:31]} 16. Kd1 {[%emt 0:04:53]} Bxe3 {[%emt 0:01:03]} 17. Nxe4 {[%emt 0:00:20]} Bxf4 {[%emt 0:10:54]} 18. Nd2 {[%emt 0:03:04]} Bd6 {[%emt 0:03:13]} 19. Qf3 {[%emt 0:03:17]} Rb8 {[%emt 0:02:02]} 20. Nb3 {[%emt 0:01:21]} Re8 {[%emt 0:01:26]} 21. Rf1 {[%emt 0:02:01]} Rb7 {[%emt 0:00:34]} 22. h3 {[%emt 0:00:31]} Rbe7 {[%emt 0:00:31]} 23. Nc1 {[%emt 0:08:17]} Qd4+ {[%emt 0:02:01]} 24. Qd3 {[%emt 0:06:04]} Qxb2 {[%emt 0:03:08]} 25. Ra2 {[%emt 0:00:04]} Qb5 {[%emt 0:03:32]} 26. Qf3 {[%emt 0:02:39]} Qb6 {[%emt 0:01:17]} 27. c3 {[%emt 0:02:29]} Qe3 {[%emt 0:01:44]} 28. Qxe3 {[%emt 0:00:59]} Rxe3 {[%emt 0:00:10]} 29. Nd3 {[%emt 0:01:20]} a5 {[%emt 0:02:45]} 30. a4 {[%emt 0:00:00]} Ba6 {[%emt 0:00:13]} 31. Rd2 {[%emt 0:00:00]} Rg3 {[%emt 0:00:59]} 32. Bh5 {[%emt 0:00:27]} g6 {[%emt 0:01:10]} 33. Bf3 {[%emt 0:00:05]} Re3 {[%emt 0:00:25]} 34. Kc2 {[%emt 0:00:10]} Bxd3+ {[%emt 0:00:19]} 35. Rxd3 {[%emt 0:00:06]} Rxd3 {[%emt 0:00:07]} 36. Kxd3 {[%emt 0:00:05]} Rg5 {[%emt 0:01:50]} 37. Rb1 {[%emt 0:00:23]} c5 {[%emt 0:10:19]} 38. Rb6 {[%emt 0:00:48]} c4+ {[%emt 0:00:29]} 39. Kc2 {[%emt 0:00:37]} Bc7 {[%emt 0:00:31]} 40. Rb7 {[%emt 0:00:34]} Bf4 {[%emt 0:00:27]} 41. Ra7 {[%emt 0:30:41]} Re5 {[%emt 0:05:56]} 42. Rxa5 {[%emt 0:00:00]} Re3 {[%emt 0:00:38]} 43. Rxd5 {[%emt 0:00:00]} Be5 {[%emt 0:00:21]} 44. Kd2 {[%emt 0:00:00]} Bf4 {[%emt 0:00:52]} 45. Kc2 {[%emt 0:00:00]} Be5 {[%emt 0:00:54]} 46. Kd2 1/2-1/2

[Event "FRA-ch Open A-D 2018"]
[Site "Nimes"]
[Date "2018.08.22"]
[Round "5"]
[White "Girardon, Jerome"]
[Black "El Mchaouri Mas, Younes"]
[Result "0-1"]
[ECO "E71"]
[WhiteElo "2186"]
[BlackElo "2120"]
[Annotator "NA"]
[PlyCount "46"]
[EventDate "2018.08.18"]
[EventType "tourn"]
[EventCountry "FRA"]
[SourceTitle "playchess.com"]
[Source "ChessBase"]
[SourceQuality "1"]
[TimeControl "40/5400+30:1800+30"]

1. d4 {[%emt 0:15:02]} g6 {[%emt 0:00:00]} 2. c4 {[%emt 0:00:10]} Bg7 {[%emt 0:00:17]} 3. e4 {[%emt 0:00:15]} d6 {[%emt 0:00:58]} 4. Nc3 {[%emt 0:00:14]} Nf6 {[%emt 0:01:06]} 5. h3 {[%emt 0:00:05]} O-O {[%emt 0:02:19]} 6. Be3 {[%emt 0:00:14]} c5 {[%emt 0:02:11]} 7. dxc5 {[%emt 0:00:06]} Qa5 {[%emt 0:00:06]} 8. Bd3 $11 {[%emt 0:00:13]} ({Much worse is} 8. cxd6 Nxe4 9. Nge2 Nxd6 $17) 8... dxc5 {[%emt 0:09:09]} 9. e5 {[%emt 0:00:07]} Ne8 {[%emt 0:24:43]} 10. f4 {[%emt 0:00:10]} f6 {[%emt 0:04:06]} 11. exf6 {[%emt 0:00:29]} Nxf6 {[%emt 0:02:27]} 12. Nf3 {[%emt 0:02:22]} Nc6 {[%emt 0:12:50]} 13. O-O {[%emt 0:09:57]} Rd8 {[%emt 0:05:25]} 14. Nd5 {[%emt 0:06:22]} Nxd5 {[%emt 0:13:18]} 15. cxd5 {[%emt 0:00:46]} Nb4 {[%emt 0:00:41]} 16. Bd2 {[%emt 0:14:16]} c4 {[%emt 0:03:06]} 17. Be4 {[%emt 0:08:07]} Bxb2 {[%emt 0:04:42]} 18. Rb1 {[%emt 0:05:34]} Qc5+ {[%emt 0:01:14]} 19. Kh1 {[%emt 0:00:36]} c3 {[%emt 0:00:16]} 20. Rxb2 {[%emt 0:00:05]} cxb2 {[%emt 0:02:45]} 21. Qb3 {[%emt 0:01:25]} Nxd5 {[%emt 0:00:21]} 22. Bb4 {[%emt 0:03:40]} Qb5 {[%emt 0:03:12]} 23. Nd4 {[%emt 0:00:54]} Qxf1+ {[%emt 0:00:10] Nf3 Qb5} 0-1

[Event "FRA-ch Open A-D 2018"]
[Site "Nimes"]
[Date "2018.08.22"]
[Round "5"]
[White "Pham, Arthur"]
[Black "Bianchi, Guillaume"]
[Result "1-0"]
[ECO "B40"]
[WhiteElo "2107"]
[BlackElo "2064"]
[Annotator "NA"]
[PlyCount "65"]
[EventDate "2018.08.18"]
[EventType "tourn"]
[EventCountry "FRA"]
[SourceTitle "playchess.com"]
[Source "ChessBase"]
[SourceQuality "1"]
[TimeControl "40/5400+30:1800+30"]

1. e4 {[%emt 0:00:00]} c5 {[%emt 0:00:00]} 2. Nf3 {[%emt 0:00:00]} e6 {[%emt 0:00:07]} 3. c3 {[%emt 0:00:47]} Nf6 {[%emt 0:02:24]} 4. Bd3 {[%emt 0:07:01]} Nc6 {[%emt 0:06:51]} 5. O-O {[%emt 0:04:36]} d5 {[%emt 0:06:42]} 6. e5 {[%emt 0:01:03]} Nd7 {[%emt 0:00:16] LiveBook: 31 Games} 7. Bb5 {[%emt 0:03:16]} Qc7 {[%emt 0:07:04]} 8. d4 {[%emt 0:05:23]} h6 {[%emt 0:07:07]} 9. a3 {[%emt 0:01:35]} b6 {[%emt 0:02:30]} 10. Re1 {[%emt 0:05:24]} Be7 {[%emt 0:02:21]} 11. Nbd2 {[%emt 0:02:14]} Bb7 $14 {[%emt 0:09:03]} 12. b4 {[%emt 0:02:45]} a5 {[%emt 0:04:49]} 13. bxc5 {[%emt 0:03:15]} bxc5 {[%emt 0:00:23]} 14. Nf1 {[%emt 0:08:13]} Ba6 {[%emt 0:03:40]} 15. Ba4 {[%emt 0:02:14]} Nb6 {[%emt 0:06:43]} 16. Bc2 {[%emt 0:01:24]} Bxf1 {[%emt 0:05:53]} 17. Kxf1 {[%emt 0:01:04]} c4 {[%emt 0:00:14]} 18. a4 {[%emt 0:01:26]} Kd7 {[%emt 0:02:04]} 19. Nd2 {[%emt 0:03:29]} Rab8 {[%emt 0:03:51]} 20. Nb1 {[%emt 0:01:32]} Rb7 {[%emt 0:01:50]} 21. Qg4 {[%emt 0:02:23]} g6 {[%emt 0:00:38]} 22. Ba3 {[%emt 0:03:31]} Qd8 {[%emt 0:01:23]} 23. Bxe7 {[%emt 0:01:36]} Qxe7 {[%emt 0:00:24]} 24. Na3 {[%emt 0:00:31]} Na7 {[%emt 0:00:31]} 25. Re3 {[%emt 0:05:57]} Kc8 {[%emt 0:01:30]} 26. Ree1 {[%emt 0:03:29]} Nd7 {[%emt 0:02:32]} 27. Qf4 {[%emt 0:10:30]} h5 {[%emt 0:01:13]} 28. Ra2 {[%emt 0:04:41]} Kc7 {[%emt 0:01:32]} 29. Nb5+ {[%emt 0:00:56]} Nxb5 {[%emt 0:00:59]} 30. axb5 {[%emt 0:00:04]} Ra8 {[%emt 0:01:11]} 31. Rea1 {[%emt 0:00:38]} Kb6 {[%emt 0:03:30]} 32. Ba4 {[%emt 0:01:25]} Rba7 {[%emt 0:00:55]} 33. Rb1 {[%emt 0:01:26]} 1-0

[Event "FRA-ch Open A-D 2018"]
[Site "Nimes"]
[Date "2018.08.22"]
[Round "5"]
[White "Kollar, Romain"]
[Black "Lux, Hugo de Melo"]
[Result "1/2-1/2"]
[ECO "B41"]
[WhiteElo "2065"]
[BlackElo "2147"]
[Annotator "NA"]
[PlyCount "60"]
[EventDate "2018.08.18"]
[EventType "tourn"]
[EventCountry "FRA"]
[SourceTitle "playchess.com"]
[Source "ChessBase"]
[SourceQuality "1"]
[TimeControl "40/5400+30:1800+30"]

1. e4 {[%emt 0:00:00]} c5 {[%emt 0:00:00]} 2. Nf3 {[%emt 0:00:00]} e6 {[%emt 0:00:00]} 3. d4 {[%emt 0:00:03]} cxd4 {[%emt 0:00:00]} 4. Nxd4 {[%emt 0:00:10]} a6 {[%emt 0:00:00]} 5. c4 {[%emt 0:00:06]} Nf6 {[%emt 0:00:00]} 6. Nc3 {[%emt 0:00:21]} Qc7 {[%emt 0:00:00]} 7. a3 {[%emt 0:00:20]} b6 {[%emt 0:00:00]} 8. Be3 {[%emt 0:00:20] LiveBook: 477 Games} Bb7 {[%emt 0:00:01] B41: Sicilian: Kan Variation: 5 c4} 9. f3 {[%emt 0:00:05]} Be7 {[%emt 0:00:21]} (9... Nc6 10. Rc1 Bc5 11. Qd2 O-O 12. Be2 Rac8 13. b4 Bxd4 14. Bxd4 Nxd4 15. Qxd4 {1-0 (33) Ponomariov,R (2694)-Fedorchuk,S (2648) Riadh 2017}) 10. Be2 {[%emt 0:00:37]} O-O {[%emt 0:00:17]} 11. O-O {[%emt 0:00:08]} d6 {[%emt 0:00:37]} 12. Qd2 {[%emt 0:00:31]} Nbd7 {[%emt 0:00:05]} 13. Rfc1 {[%emt 0:00:16]} Rac8 {[%emt 0:00:13]} 14. b4 {[%emt 0:01:43]} Qb8 {[%emt 0:00:18]} 15. Na4 {[%emt 0:01:34]} Bd8 {[%emt 0:01:59]} 16. Nb3 $146 {[%emt 0:03:42]} (16. Rab1 $14) ({Predecessor:} 16. Kh1) 16... Bc7 {[%emt 0:00:32]} 17. Kh1 $15 {[%emt 0:15:29]} Rfe8 {[%emt 0:30:50]} 18. c5 {[%emt 0:32:29]} dxc5 {[%emt 0:05:25]} 19. bxc5 {[%emt 0:02:29]} b5 {[%emt 0:03:43]} 20. c6 {[%emt 0:02:38]} bxa4 {[%emt 0:15:24]} 21. cxb7 {[%emt 0:02:04]} Qxb7 {[%emt 0:00:28]} 22. Na5 {[%emt 0:03:23]} Qa8 {[%emt 0:05:03]} 23. Nc4 {[%emt 0:06:09]} Ne5 {[%emt 0:11:07]} 24. Qb4 {[%emt 0:01:39]} Nxc4 {[%emt 0:03:59]} 25. Bxc4 {[%emt 0:00:08]} Be5 {[%emt 0:03:42]} 26. Rab1 {[%emt 0:00:06]} Qc6 {[%emt 0:09:07]} 27. Bb3 {[%emt 0:02:09]} Qd6 {[%emt 0:00:23]} 28. Bxa4 {[%emt 0:01:34]} Rxc1+ {[%emt 0:02:13]} 29. Rxc1 {[%emt 0:00:21]} Rb8 {[%emt 0:00:10]} 30. Qxd6 {[%emt 0:07:00]} Bxd6 {[%emt 0:00:02]} 1/2-1/2

[Event "FRA-ch Open A-D 2018"]
[Site "Nimes"]
[Date "2018.08.22"]
[Round "5"]
[White "Caron, Damien"]
[Black "Pupier, Terry"]
[Result "0-1"]
[ECO "A41"]
[WhiteElo "2038"]
[BlackElo "2068"]
[Annotator "NA"]
[PlyCount "70"]
[EventDate "2018.08.18"]
[EventType "tourn"]
[EventCountry "FRA"]
[SourceTitle "playchess.com"]
[Source "ChessBase"]
[SourceQuality "1"]
[TimeControl "40/5400+30:1800+30"]

1. Nf3 {[%emt 0:01:03]} d6 {[%emt 0:00:00]} 2. d4 {[%emt 0:01:35]} Bg4 {[%emt 0:00:00]} 3. Nbd2 {[%emt 0:06:12]} Nd7 {[%emt 0:03:25]} 4. h3 {[%emt 0:01:16]} Bh5 {[%emt 0:00:20]} 5. c3 {[%emt 0:04:18]} c6 {[%emt 0:05:07] LiveBook: 9 Games} 6. e4 {[%emt 0:05:05]} e5 {[%emt 0:02:24]} 7. Be2 {[%emt 0:05:31]} Ngf6 {[%emt 0:11:06]} 8. O-O {[%emt 0:03:26]} Be7 {[%emt 0:03:01]} 9. Re1 {[%emt 0:00:21]} O-O {[%emt 0:02:10]} 10. Qc2 {[%emt 0:01:19]} Bg6 {[%emt 0:04:33]} 11. Bd3 {[%emt 0:01:35]} Nh5 {[%emt 0:03:34]} 12. g3 {[%emt 0:02:23]} h6 {[%emt 0:03:42]} 13. Nc4 $14 {[%emt 0:05:16]} Qc7 {[%emt 0:02:15]} 14. Ne3 {[%emt 0:01:00]} Rae8 {[%emt 0:03:25]} 15. Ng2 {[%emt 0:09:51]} Bh7 {[%emt 0:06:58]} 16. Bd2 {[%emt 0:09:56]} Bd8 {[%emt 0:02:29]} 17. b4 {[%emt 0:03:55]} exd4 {[%emt 0:07:00]} 18. cxd4 {[%emt 0:00:35]} Nhf6 {[%emt 0:00:35]} 19. Rac1 {[%emt 0:03:52]} Qb8 {[%emt 0:04:50]} 20. g4 {[%emt 0:06:26]} Re7 {[%emt 0:06:18]} 21. g5 {[%emt 0:00:29]} hxg5 {[%emt 0:01:26]} 22. Nxg5 {[%emt 0:00:14]} Rfe8 {[%emt 0:02:35]} 23. Nxh7 {[%emt 0:12:07]} Nxh7 {[%emt 0:00:04]} 24. e5 {[%emt 0:03:57]} Nhf8 {[%emt 0:03:25]} 25. f4 {[%emt 0:01:14]} Bb6 {[%emt 0:04:06]} 26. Be3 {[%emt 0:00:06]} Qd8 {[%emt 0:01:25]} 27. Qf2 {[%emt 0:00:36]} dxe5 {[%emt 0:01:44]} 28. fxe5 {[%emt 0:06:51]} Ne6 {[%emt 0:00:09]} 29. Rcd1 {[%emt 0:02:15]} Ndf8 {[%emt 0:00:31]} 30. Bc2 {[%emt 0:00:40]} Rd7 {[%emt 0:00:46]} 31. Nf4 {[%emt 0:01:23]} Nxd4 {[%emt 0:02:18]} 32. e6 {[%emt 0:00:37]} Ndxe6 {[%emt 0:04:39]} 33. Nxe6 {[%emt 0:00:33]} Rxe6 {[%emt 0:02:43]} 34. Rxd7 {[%emt 0:00:22]} Qxd7 {[%emt 0:00:22]} 35. Bf5 {[%emt 0:00:25]} Rxe3 {[%emt 0:00:18]} 0-1

[Event "FRA-ch Open A-D 2018"]
[Site "Nimes"]
[Date "2018.08.22"]
[Round "5"]
[White "Cassam-Chenai, Eric"]
[Black "Brouard, Gregoire"]
[Result "1/2-1/2"]
[ECO "C02"]
[WhiteElo "1914"]
[BlackElo "1898"]
[Annotator "NA"]
[PlyCount "143"]
[EventDate "2018.08.18"]
[EventType "tourn"]
[EventCountry "FRA"]
[SourceTitle "playchess.com"]
[Source "ChessBase"]
[SourceQuality "1"]
[TimeControl "40/5400+30:1800+30"]

1. e4 {[%emt 0:00:00]} e6 {[%emt 0:00:00]} 2. d4 {[%emt 0:00:00]} d5 {[%emt 0:00:00]} 3. e5 {[%emt 0:00:00]} c5 {[%emt 0:00:00]} 4. c3 {[%emt 0:00:00]} Qb6 {[%emt 0:00:00]} 5. Nf3 {[%emt 0:00:00]} Nc6 {[%emt 0:00:00]} 6. a3 {[%emt 0:00:10]} Nh6 {[%emt 0:00:09]} 7. b4 {[%emt 0:00:23]} cxd4 {[%emt 0:00:11]} 8. b5 $11 {[%emt 0:00:16] LiveBook: 4 Partien} Na5 {[%emt 0:05:46]} 9. Bxh6 {[%emt 0:00:30]} gxh6 {[%emt 0:00:11]} 10. cxd4 {[%emt 0:00:09]} Bd7 {[%emt 0:02:25]} 11. Nbd2 {[%emt 0:00:13]} Rg8 {[%emt 0:05:19]} 12. a4 {[%emt 0:14:10]} Bb4 {[%emt 0:12:52]} 13. Rc1 {[%emt 0:09:41]} Rg4 {[%emt 0:04:43]} 14. Bd3 {[%emt 0:04:07]} Rxd4 {[%emt 0:11:16]} 15. Ke2 {[%emt 0:16:29]} Rg4 {[%emt 0:16:22]} 16. g3 {[%emt 0:01:02]} Ba3 {[%emt 0:11:22]} 17. Rb1 {[%emt 0:08:03]} Rc8 {[%emt 0:01:39]} 18. h3 {[%emt 0:00:32]} Rb4 {[%emt 0:03:33]} 19. Rxb4 {[%emt 0:02:15]} Bxb4 {[%emt 0:00:08]} 20. Qb1 {[%emt 0:00:20]} Bxd2 {[%emt 0:05:34]} 21. Nxd2 {[%emt 0:00:17]} Rc3 {[%emt 0:04:02]} 22. Qb4 {[%emt 0:01:09]} Qc7 {[%emt 0:02:15]} 23. f4 {[%emt 0:00:46]} b6 {[%emt 0:00:39]} 24. Rb1 {[%emt 0:00:36]} Qc5 {[%emt 0:01:11]} 25. h4 {[%emt 0:05:58]} Bc8 {[%emt 0:02:52]} 26. g4 {[%emt 0:02:06]} Bb7 {[%emt 0:01:15]} 27. f5 {[%emt 0:11:48]} d4 {[%emt 0:01:50]} 28. Qxc5 {[%emt 0:02:36]} bxc5 {[%emt 0:00:07]} 29. b6 {[%emt 0:00:28]} a6 {[%emt 0:01:39]} 30. fxe6 {[%emt 0:07:10]} fxe6 {[%emt 0:00:53]} 31. Rf1 {[%emt 0:02:04]} Ke7 {[%emt 0:01:56]} 32. g5 {[%emt 0:01:33]} hxg5 {[%emt 0:03:37]} 33. hxg5 {[%emt 0:00:10]} Nc6 {[%emt 0:01:13]} 34. Rh1 {[%emt 0:07:39]} Nxe5 {[%emt 0:01:12]} 35. Rxh7+ {[%emt 0:00:12]} Kd6 {[%emt 0:00:05]} 36. Rxb7 {[%emt 0:00:26]} Rxd3 {[%emt 0:01:07]} 37. Nc4+ {[%emt 0:00:48]} Kd5 {[%emt 0:00:10]} 38. Nxe5 {[%emt 0:00:52]} Re3+ {[%emt 0:00:32]} 39. Kd1 {[%emt 0:01:25]} Rxe5 {[%emt 0:00:25]} 40. Rd7+ {[%emt 0:01:22]} Kc6 {[%emt 0:00:55]} 41. b7 {[%emt 0:31:26]} Rxg5 {[%emt 0:30:22]} 42. b8=Q {[%emt 0:00:00]} Kxd7 {[%emt 0:00:00]} 43. Qa7+ {[%emt 0:00:00]} Kd6 {[%emt 0:00:00]} 44. Qxa6+ {[%emt 0:00:00]} Kd5 {[%emt 0:00:00]} 45. Qb5 {[%emt 0:00:00]} e5 {[%emt 0:00:00]} 46. a5 {[%emt 0:00:00]} e4 {[%emt 0:00:00]} 47. Qb7+ {[%emt 0:00:00]} Kc4 {[%emt 0:00:00]} 48. Qxe4 {[%emt 0:00:00]} Rg1+ {[%emt 0:00:00]} 49. Kc2 {[%emt 0:00:00]} Kb5 {[%emt 0:00:00]} 50. Qd5 {[%emt 0:00:00]} d3+ {[%emt 0:00:00]} 51. Kb2 {[%emt 0:00:00]} Kb4 {[%emt 0:00:00]} 52. Qxd3 {[%emt 0:00:00]} Kxa5 {[%emt 0:00:00]} 53. Qe3 {[%emt 0:00:00]} Rg2+ {[%emt 0:00:00]} 54. Kc1 {[%emt 0:00:00]} Kb5 {[%emt 0:00:00]} 55. Qb3+ {[%emt 0:00:00]} Ka5 {[%emt 0:00:00]} 56. Qd5 {[%emt 0:00:00]} Rg1+ {[%emt 0:00:00]} 57. Kc2 {[%emt 0:00:00]} Kb5 {[%emt 0:00:00]} 58. Qb7+ {[%emt 0:00:00]} Ka5 {[%emt 0:00:00]} 59. Kd3 {[%emt 0:00:00]} Rg3+ {[%emt 0:00:00]} 60. Kc4 {[%emt 0:00:00]} Rg4+ {[%emt 0:00:00]} 61. Kxc5 {[%emt 0:00:00]} Rg5+ {[%emt 0:00:00]} 62. Kc4 {[%emt 0:00:02]} Rg4+ {[%emt 0:00:00]} 63. Kc3 {[%emt 0:00:10]} Rg3+ {[%emt 0:00:00]} 64. Kc2 {[%emt 0:00:16]} Ra3 {[%emt 0:00:00]} 65. Qa7+ {[%emt 0:02:04]} Kb4 {[%emt 0:00:00]} 66. Qe7+ {[%emt 0:01:37]} Ka4 {[%emt 0:00:00]} 67. Qb7 {[%emt 0:01:21]} Ka5 {[%emt 0:00:12]} 68. Qd5+ {[%emt 0:00:34]} Kb4 {[%emt 0:00:29]} 69. Qd6+ {[%emt 0:00:30]} Ka4 {[%emt 0:00:10]} 70. Qc5 {[%emt 0:01:05]} Ra2+ {[%emt 0:00:12]} 71. Kc3 {[%emt 0:00:13]} Rc2+ {[%emt 0:00:04]} 72. Kxc2 {[%emt 0:00:14]} 1/2-1/2

[Event "FRA-ch Open A-D 2018"]
[Site "Nimes"]
[Date "2018.08.22"]
[Round "5"]
[White "Sabatier, Mathis"]
[Black "Ben Hamed, Cherif"]
[Result "1-0"]
[ECO "A43"]
[WhiteElo "1904"]
[BlackElo "1935"]
[Annotator "NA"]
[PlyCount "45"]
[EventDate "2018.08.18"]
[EventType "tourn"]
[EventCountry "FRA"]
[SourceTitle "playchess.com"]
[Source "ChessBase"]
[SourceQuality "1"]
[TimeControl "40/5400+30:1800+30"]

1. d4 {[%emt 0:00:00]} g6 {[%emt 0:00:00]} 2. c4 {[%emt 0:00:00]} c5 {[%emt 0:00:00]} 3. d5 {[%emt 0:00:11]} Bg7 {[%emt 0:00:10]} 4. Nc3 {[%emt 0:00:20]} Bxc3+ {[%emt 0:00:16]} 5. bxc3 {[%emt 0:00:09]} f5 $14 {[%emt 0:00:08] LiveBook: 425 Games} 6. Nf3 {[%emt 0:08:19]} Nf6 {[%emt 0:04:32]} 7. Qc2 {[%emt 0:02:55]} d6 {[%emt 0:04:04]} 8. Bf4 {[%emt 0:06:01]} Qa5 {[%emt 0:02:55]} 9. Nd2 {[%emt 0:03:36]} Nbd7 {[%emt 0:03:22]} 10. f3 {[%emt 0:07:19]} Nb6 {[%emt 0:07:00]} 11. e3 {[%emt 0:11:27]} Bd7 {[%emt 0:06:54]} 12. Bd3 {[%emt 0:02:25]} O-O-O {[%emt 0:01:01]} 13. O-O {[%emt 0:09:59]} e5 {[%emt 0:02:44]} 14. dxe6 {[%emt 0:03:06]} Bxe6 {[%emt 0:00:07]} 15. Rfb1 {[%emt 0:03:34]} Qa4 {[%emt 0:04:57]} 16. Qb2 {[%emt 0:04:36]} Rd7 {[%emt 0:07:37]} 17. Bc2 {[%emt 0:09:15]} Qa6 {[%emt 0:15:10]} 18. a4 {[%emt 0:03:06]} Re8 {[%emt 0:17:55]} 19. a5 {[%emt 0:01:31]} Nxc4 {[%emt 0:01:09]} 20. Qc1 {[%emt 0:00:16]} Nd5 {[%emt 0:05:32]} 21. Ba4 {[%emt 0:01:02]} Ncxe3 {[%emt 0:02:28]} 22. Bxe3 {[%emt 0:01:57]} Nxe3 {[%emt 0:01:30]} 23. Bb5 {[%emt 0:00:09]} 1-0